bitfinex/quotes_BTCUSD_20241202
["timestamp","ask_amount","ask_price","bid_price","bid_amount"]
[1733149993809,0.207682,96301.0,96298.0,0.0007256]
[1733149994061,0.31052721,96301.0,96298.0,0.0007256]
[1733149994759,0.207686,96299.0,96298.0,0.0007256]
[1733149995199,0.207686,96299.0,96298.0,0.0017256]
[1733149995451,0.31052821,96301.0,96298.0,0.0017256]
[1733149995701,0.204,96305.0,96298.0,0.0017256]
[1733149996155,0.204,96305.0,96302.0,0.207679]
[1733149996365,0.204,96305.0,96302.0,0.415358]
[1733149997435,0.205,96305.0,96302.0,0.415358]
[1733149997641,0.205,96305.0,96302.0,0.207679]
[1733149998107,0.205,96305.0,96290.0,0.02120853]
[1733149998108,0.206,96305.0,96303.0,0.207677]
[1733149998513,0.206,96305.0,96276.0,0.023]
[1733149998756,0.206,96305.0,96303.0,0.207676]
[1733149998757,0.20617696,96305.0,96303.0,0.207676]
[1733149998967,0.20517696,96305.0,96303.0,0.207676]
[1733149999186,0.20517696,96305.0,96302.0,0.207679]
[1733149999618,0.20517696,96305.0,96299.0,0.207685]
[1733150000076,0.20417696,96305.0,96304.0,0.207675]
[1733150000307,0.20417696,96305.0,96303.0,0.207677]
[1733150000536,0.20417696,96305.0,96303.0,0.005]
[1733150000758,0.20417696,96305.0,96302.0,0.002]
[1733150000967,0.20417696,96305.0,96300.0,0.207682]
[1733150001171,0.20417696,96305.0,96288.0,0.0768]
[1733150001172,0.20417696,96305.0,96299.0,0.007]
[1733150001401,0.20417696,96305.0,96299.0,0.002]
[1733150001828,0.20417696,96305.0,96303.0,0.005]
[1733150002081,0.20417696,96305.0,96302.0,0.002]
[1733150002319,0.20417696,96305.0,96304.0,0.023]
[1733150002979,0.20417696,96305.0,96303.0,0.207677]
[1733150002980,0.20417696,96305.0,96302.0,0.002]
[1733150003181,0.20503996,96305.0,96303.0,0.207677]
[1733150003630,0.20503996,96305.0,96302.0,0.002]
[1733150004055,0.20503996,96305.0,96302.0,0.02052881]
[1733150004266,0.02078497,96304.0,96302.0,0.02552881]
[1733150004488,0.22846097,96304.0,96302.0,0.02552881]
[1733150004694,0.20503996,96305.0,96302.0,0.02552881]
[1733150005109,0.20503996,96305.0,96302.0,0.005]
[1733150005324,0.20503996,96305.0,96302.0,0.007]
[1733150005767,0.20503996,96305.0,96303.0,0.207677]
[1733150006736,0.20503996,96305.0,96304.0,0.023]
[1733150006951,0.00103996,96305.0,96304.0,0.023]
[1733150008922,0.00103996,96305.0,96304.0,0.032]
[1733150009169,0.00103996,96305.0,96304.0,0.0839459]
[1733150009397,0.00103996,96305.0,96304.0,0.13484521]
[1733150010047,0.00103996,96305.0,96304.0,0.12768293]
[1733150010267,0.00103996,96305.0,96304.0,0.25178293]
[1733150010523,0.00103996,96305.0,96304.0,0.25894521]
[1733150010737,0.0022,96319.0,96314.0,0.354754]
[1733150010952,0.04643081,96315.0,96314.0,0.45759921]
[1733150012482,0.04643081,96315.0,96314.0,0.47842942]
[1733150013398,0.04643081,96315.0,96314.0,0.48742942]
[1733150013607,0.04643081,96315.0,96314.0,0.49642942]
[1733150013847,0.04643081,96315.0,96314.0,0.59926088]
[1733150014267,0.04643081,96315.0,96314.0,0.6169601]
[1733150016109,0.04643081,96315.0,96314.0,0.7669601]
[1733150016356,0.04729351,96315.0,96314.0,0.7669601]
[1733150017018,0.04729351,96315.0,96314.0,0.9669601]
[1733150017505,0.0030631,96339.0,96330.0,0.415238]
[1733150017744,0.0030631,96339.0,96332.0,0.230615]
[1733150017974,0.0030631,96339.0,96332.0,0.33346021]
[1733150019823,0.0030631,96339.0,96332.0,0.33946021]
[1733150020067,0.0030631,96339.0,96332.0,0.41926021]
[1733150020288,0.0030631,96339.0,96332.0,0.44417395]
[1733150020557,0.0030631,96339.0,96332.0,0.42826021]
[1733150020783,0.0030631,96339.0,96332.0,0.41926021]
[1733150021018,0.0030631,96339.0,96332.0,0.42826021]
[1733150021452,0.0030631,96339.0,96332.0,0.44011367]
[1733150021688,0.0030631,96339.0,96332.0,0.53346994]
[1733150021906,0.0030631,96339.0,96332.0,0.44311367]
[1733150022130,0.0030631,96339.0,96332.0,0.44911367]
[1733150022399,0.0030631,96339.0,96332.0,0.46604695]
[1733150022614,0.002,96349.0,96332.0,0.46604695]
[1733150022615,0.002,96349.0,96344.0,0.15]
[1733150022862,0.002,96349.0,96346.0,0.023]
[1733150023072,0.002,96349.0,96348.0,0.23058]
[1733150023285,0.002,96349.0,96348.0,0.33342521]
[1733150023988,0.00259034,96349.0,96348.0,0.33342521]
[1733150024183,0.00259034,96349.0,96348.0,0.42328513]
[1733150024636,0.00259034,96349.0,96348.0,0.44366364]
[1733150024852,0.00259034,96349.0,96348.0,0.56756364]
[1733150025943,0.00259034,96349.0,96348.0,0.57656364]
[1733150026172,0.00259034,96349.0,96348.0,0.59401292]
[1733150026376,0.00259034,96349.0,96348.0,0.60101292]
[1733150027096,0.00259034,96349.0,96348.0,0.59401292]
[1733150027603,0.00259034,96349.0,96348.0,0.55551292]
[1733150028515,0.0008625,96376.0,96353.0,0.207569]
[1733150028794,0.0008625,96376.0,96360.0,0.15]
[1733150029007,0.0008625,96376.0,96368.0,0.207537]
[1733150029221,0.00217699,96369.0,96368.0,0.33338221]
[1733150029678,0.00217699,96369.0,96368.0,0.66018221]
[1733150030592,0.00217699,96369.0,96368.0,0.48099484]
[1733150030823,0.00923859,96374.0,96373.0,0.407527]
[1733150031041,0.0008625,96376.0,96375.0,0.373]
[1733150031258,0.0008625,96376.0,96375.0,0.55344521]
[1733150032183,0.002,96389.0,96388.0,0.357494]
[1733150032385,0.002,96389.0,96388.0,1.00693921]
[1733150032649,0.002,96389.0,96388.0,1.0791258]
[1733150032873,0.002,96389.0,96388.0,0.6791258]
[1733150033099,0.002,96389.0,96388.0,0.6305258]
[1733150033311,0.002,96389.0,96388.0,0.6474016]
[1733150033529,0.002,96389.0,96388.0,0.66768736]
[1733150034228,0.002,96389.0,96388.0,0.67568736]
[1733150034651,0.002,96389.0,96388.0,0.87568736]
[1733150034889,0.002,96389.0,96388.0,1.08468736]
[1733150035117,0.002,96389.0,96388.0,1.07568736]
[1733150035683,0.002,96389.0,96388.0,0.87668736]
[1733150035923,0.987948,96400.0,96399.0,0.173]
[1733150036152,0.987948,96400.0,96399.0,0.35538861]
[1733150036381,0.987948,96400.0,96399.0,0.35532213]
[1733150036603,0.987948,96400.0,96399.0,0.55532213]
[1733150037031,0.987948,96400.0,96399.0,0.35532213]
[1733150037245,0.98812485,96400.0,96399.0,0.55532213]
[1733150037452,0.98812485,96400.0,96399.0,0.60455565]
[1733150037921,0.98812485,96400.0,96399.0,0.61355565]
[1733150038162,0.98812485,96400.0,96399.0,0.81348917]
[1733150038366,0.91795218,96400.0,96399.0,0.88978917]
[1733150038577,0.88079707,96400.0,96399.0,0.88978917]
[1733150038784,0.88079707,96400.0,96399.0,0.88972269]
[1733150038994,0.88079707,96400.0,96399.0,0.89472269]
[1733150039460,0.88079707,96400.0,96399.0,0.88972269]
[1733150039671,0.83918808,96400.0,96399.0,0.88972269]
[1733150039880,0.79842493,96400.0,96399.0,0.89872269]
[1733150040088,0.0008638,96430.0,96418.0,0.40736352]
[1733150040295,0.0008638,96430.0,96418.0,0.53320873]
[1733150040551,0.0008638,96430.0,96418.0,0.73320873]
[1733150040766,0.0008638,96430.0,96418.0,0.95970873]
[1733150041714,0.0008638,96430.0,96429.0,0.78033952]
[1733150041925,0.0008638,96430.0,96429.0,0.88318473]
[1733150042138,0.0008638,96430.0,96429.0,0.68325121]
[1733150042377,8e-07,96430.0,96429.0,0.96568473]
[1733150043067,0.00017762,96430.0,96429.0,0.96068473]
[1733150043323,0.00017762,96430.0,96429.0,0.96968473]
[1733150044166,0.00017762,96430.0,96429.0,0.98728768]
[1733150044424,0.0008638,96446.0,96438.0,0.580387]
[1733150044664,0.0008638,96446.0,96438.0,0.88316573]
[1733150044665,1e-06,96439.0,96438.0,0.88316573]
[1733150044872,0.0219927,96453.0,96452.0,0.2]
[1733150045084,0.0219927,96453.0,96452.0,0.47767973]
[1733150045316,0.0481,96461.0,96452.0,0.10284521]
[1733150045537,0.0481,96461.0,96429.0,0.01777977]
[1733150045538,0.0481,96461.0,96454.0,0.207352]
[1733150045784,0.0008638,96466.0,96457.0,0.207345]
[1733150046019,0.0008638,96466.0,96458.0,0.10467987]
[1733150046249,0.0008638,96466.0,96458.0,0.50461339]
[1733150046477,6e-05,96483.0,96471.0,0.207316]
[1733150046704,6e-05,96483.0,96471.0,0.31199557]
[1733150046974,6e-05,96483.0,96471.0,0.68316121]
[1733150047211,0.06217689,96472.0,96471.0,0.88309473]
[1733150047429,0.0002784,96506.0,96471.0,0.88309473]
[1733150047430,0.0002784,96506.0,96493.0,0.39993352]
[1733150047649,0.0002784,96506.0,96505.0,0.31008821]
[1733150047866,0.00045521,96506.0,96505.0,0.31008821]
[1733150048083,0.00017681,96506.0,96505.0,0.31008821]
[1733150048761,0.00017681,96506.0,96505.0,0.33055472]
[1733150049228,0.00017681,96506.0,96505.0,0.33955472]
[1733150049469,0.00217681,96506.0,96505.0,0.33055472]
[1733150049678,0.00217681,96506.0,96505.0,0.35355472]
[1733150049908,0.00217681,96506.0,96505.0,0.36255472]
[1733150050132,0.00217681,96506.0,96505.0,0.35355472]
[1733150050354,0.00217681,96506.0,96505.0,0.56155472]
[1733150050561,0.00217681,96506.0,96505.0,0.72055472]
[1733150050819,0.00217681,96506.0,96505.0,0.51255472]
[1733150051282,0.00217681,96506.0,96505.0,0.51955472]
[1733150051492,0.0002784,96540.0,96514.0,0.430223]
[1733150051704,0.0002784,96544.0,96514.0,0.33306821]
[1733150051945,0.0002784,96544.0,96514.0,0.68306821]
[1733150052397,1e-06,96515.0,96514.0,0.88300173]
[1733150052611,0.0002784,96544.0,96543.0,0.230161]
[1733150052612,0.000143,96544.0,96543.0,0.230161]
[1733150052795,0.000143,96544.0,96543.0,0.33300621]
[1733150053031,0.00031965,96544.0,96543.0,0.33300621]
[1733150053665,0.00017665,96544.0,96543.0,0.35389002]
[1733150053883,0.00017665,96544.0,96543.0,0.33300621]
[1733150054106,0.07104025,96557.0,96545.0,0.202157]
[1733150054312,0.07104025,96557.0,96546.0,0.10284521]
[1733150054790,0.27805358,96557.0,96546.0,0.10284521]
[1733150055005,0.27805358,96557.0,96543.0,0.00017665]
[1733150055006,0.15600536,96556.0,96543.0,0.00017665]
[1733150055237,0.207156,96546.0,96543.0,0.00017665]
[1733150055441,0.1232,96556.0,96543.0,0.00917665]
[1733150055645,0.1232,96556.0,96543.0,0.00017665]
[1733150055883,0.207139,96554.0,96543.0,0.00017665]
[1733150056096,0.207139,96554.0,96546.0,0.008]
[1733150056311,0.207152,96548.0,96543.0,0.00717665]
[1733150056562,0.1232,96556.0,96544.0,0.10284521]
[1733150056762,0.1232,96556.0,96543.0,0.01017665]
[1733150056763,0.207146,96551.0,96543.0,0.00317665]
[1733150056972,0.1232,96556.0,96543.0,0.00317665]
[1733150056973,0.207152,96548.0,96543.0,0.00317665]
[1733150057213,0.001,96554.0,96544.0,0.10284521]
[1733150057451,0.001,96554.0,96547.0,0.10284521]
[1733150057667,0.07092058,96557.0,96556.0,0.207133]
[1733150057887,0.07092058,96557.0,96556.0,0.10284521]
[1733150059639,0.07092058,96557.0,96543.0,0.00017665]
[1733150059857,0.07092058,96557.0,96556.0,0.009]
[1733150060065,0.07092058,96557.0,96556.0,0.31897821]
[1733150060278,0.07092058,96557.0,96556.0,0.30997821]
[1733150060491,0.07092058,96557.0,96544.0,0.207159]
[1733150060723,0.07292058,96557.0,96556.0,0.013]
[1733150061206,0.07292058,96557.0,96556.0,0.009]
[1733150062556,0.07292058,96557.0,96545.0,0.207155]
[1733150062769,0.07292058,96557.0,96556.0,0.001]
[1733150063009,0.23711,96567.0,96556.0,0.004]
[1733150063010,0.22427558,96567.0,96556.0,0.004]
[1733150063224,0.22427558,96567.0,96545.0,0.31000021]
[1733150063225,0.207118,96564.0,96545.0,0.10284521]
[1733150063441,0.207112,96566.0,96552.0,0.207142]
[1733150063647,0.01716558,96567.0,96556.0,0.002]
[1733150063868,0.207128,96559.0,96556.0,0.002]
[1733150064138,0.3241,96555.0,96543.0,0.00017665]
[1733150064338,0.1241,96555.0,96543.0,0.00017665]
[1733150064584,0.207141,96553.0,96543.0,0.00017665]
[1733150064796,0.207157,96546.0,96543.0,0.00017665]
[1733150065028,0.3299,96544.0,96543.0,0.00017665]
[1733150065240,0.3299,96544.0,96482.0,0.077]
[1733150065241,0.2,96530.0,96482.0,0.077]
[1733150065449,0.081,96529.0,96492.0,0.207271]
[1733150065664,0.081,96529.0,96493.0,0.12955448]
[1733150065882,0.081,96529.0,96511.0,0.207228]
[1733150066092,0.207168,96540.0,96513.0,0.207225]
[1733150066312,0.0489,96541.0,96514.0,0.10467884]
[1733150066523,0.207168,96540.0,96514.0,0.10467884]
[1733150066733,0.207168,96540.0,96515.0,0.01046788]
[1733150066943,0.0489,96541.0,96515.0,0.01046788]
[1733150066944,0.0489,96541.0,96516.0,0.12767867]
[1733150067377,0.0489,96541.0,96526.0,0.207197]
[1733150067609,0.0489,96541.0,96538.0,0.207171]
[1733150067830,0.0489,96541.0,96538.0,0.414342]
[1733150068051,0.0489,96541.0,96534.0,0.20718]
[1733150068273,0.0489,96541.0,96518.0,0.023]
[1733150068274,0.0489,96541.0,96535.0,0.31002321]
[1733150068484,0.207168,96540.0,96529.0,0.20719]
[1733150068938,0.0489,96541.0,96517.0,0.207217]
[1733150069156,0.207182,96534.0,96518.0,0.10284521]
[1733150069359,0.001,96540.0,96518.0,0.10467886]
[1733150069574,0.001,96540.0,96499.0,0.0756]
[1733150069575,0.001,96540.0,96507.0,0.00183365]
[1733150069815,0.0489,96541.0,96519.0,0.10284521]
[1733150070030,0.0489,96541.0,96538.0,0.207171]
[1733150070315,0.0499,96541.0,96538.0,0.207171]
[1733150070566,0.0499,96541.0,96540.0,0.207168]
[1733150070567,0.001,96541.0,96540.0,0.207168]
[1733150070787,0.001,96541.0,96540.0,0.33484622]
[1733150071021,0.001,96541.0,96540.0,0.33301321]
[1733150071239,0.001,96541.0,96540.0,0.36390733]
[1733150071683,0.002,96546.0,96540.0,0.15673933]
[1733150071896,0.002,96546.0,96541.0,0.31001021]
[1733150072097,0.002,96546.0,96541.0,0.51717521]
[1733150073459,0.002,96546.0,96541.0,0.52617521]
[1733150073683,0.002,96546.0,96543.0,0.207161]
[1733150073893,0.0014076,96546.0,96543.0,0.31000621]
[1733150074168,0.0014076,96546.0,96544.0,0.10467845]
[1733150074376,0.0014076,96546.0,96545.0,0.207157]
[1733150074582,0.0014076,96546.0,96545.0,0.31000221]
[1733150076095,0.0014076,96546.0,96545.0,0.38630221]
[1733150076308,0.01716558,96567.0,96556.0,0.207133]
[1733150076520,0.01716558,96567.0,96556.0,0.31181116]
[1733150076759,0.01716558,96567.0,96556.0,0.30997821]
[1733150077425,0.01716558,96567.0,96556.0,0.207133]
[1733150077636,0.01716558,96567.0,96554.0,0.207137]
[1733150077637,0.0476,96564.0,96554.0,0.207137]
[1733150077871,0.0827,96561.0,96547.0,0.207152]
[1733150078124,0.0827,96561.0,96556.0,0.016]
[1733150079294,0.0827,96561.0,96556.0,0.007]
[1733150079526,0.0827,96561.0,96543.0,0.207161]
[1733150079527,0.0827,96561.0,96550.0,0.207146]
[1733150079735,0.0827,96561.0,96554.0,0.007]
[1733150080156,0.0827,96561.0,96556.0,0.007]
[1733150080369,0.0476,96564.0,96556.0,0.007]
[1733150080617,0.0476,96564.0,96556.0,0.004]
[1733150081041,0.0476,96564.0,96555.0,0.207135]
[1733150081251,0.0476,96564.0,96547.0,0.207151]
[1733150081452,0.0476,96564.0,96528.0,0.207193]
[1733150081453,0.2,96562.0,96556.0,0.005]
[1733150081675,0.20713,96558.0,96556.0,0.005]
[1733150082332,0.0068605,96557.0,96556.0,0.005]
[1733150082556,0.2894323,96557.0,96556.0,0.005]
[1733150082769,0.21654202,96557.0,96556.0,0.009]
[1733150083200,0.21654202,96557.0,96541.0,0.00189775]
[1733150083201,0.407133,96556.0,96555.0,0.005]
[1733150083411,0.64975973,96556.0,96555.0,0.005]
[1733150083636,0.537263,96542.0,96541.0,0.00189775]
[1733150083854,0.64978973,96542.0,96541.0,0.00189775]
[1733150084765,0.75262119,96542.0,96541.0,0.00189775]
[1733150085221,0.64978973,96542.0,96541.0,0.00189775]
[1733150086617,0.65078973,96542.0,96541.0,0.00189775]
[1733150087080,0.65078973,96542.0,96505.0,0.207242]
[1733150087081,0.207214,96519.0,96505.0,0.207242]
[1733150087286,0.2,96528.0,96508.0,0.207234]
[1733150087490,0.1304,96530.0,96494.0,0.01620782]
[1733150087491,0.1304,96530.0,96511.0,0.207229]
[1733150087910,0.207202,96525.0,96514.0,0.207222]
[1733150088357,0.33759,96530.0,96507.0,0.207237]
[1733150088565,0.1304,96530.0,96506.0,0.20724]
[1733150088776,0.2,96523.0,96499.0,0.207255]
[1733150089000,0.2,96516.0,96494.0,0.01620782]
[1733150089205,0.2,96516.0,96495.0,0.03177589]
[1733150089419,0.2,96516.0,96505.0,0.005]
[1733150089661,0.207235,96509.0,96505.0,0.005]
[1733150089862,0.20723,96511.0,96505.0,0.005]
[1733150090081,0.207238,96507.0,96494.0,0.414532]
[1733150090310,0.20723,96511.0,96494.0,0.003]
[1733150090525,0.207223,96514.0,96508.0,0.005]
[1733150090747,0.207234,96509.0,96508.0,0.005]
[1733150090965,0.1261,96513.0,96494.0,0.003]
[1733150091177,0.20726,96497.0,96494.0,0.00317681]
[1733150091407,0.2,96505.0,96494.0,0.00017681]
[1733150091622,0.207256,96499.0,96494.0,0.00017681]
[1733150092481,0.2,96500.0,96494.0,0.00017681]
[1733150093116,0.207256,96499.0,96494.0,0.00717681]
[1733150093317,0.207256,96499.0,96494.0,0.00017681]
[1733150093771,0.207258,96498.0,96494.0,0.00917681]
[1733150094223,0.207258,96498.0,96494.0,0.00617681]
[1733150094692,0.207258,96498.0,96494.0,0.00917681]
[1733150095354,0.2,96500.0,96497.0,0.207259]
[1733150095565,0.2,96500.0,96495.0,0.207263]
[1733150095775,0.2,96500.0,96499.0,0.207256]
[1733150097316,0.2,96500.0,96499.0,0.003]
[1733150098243,0.2,96500.0,96499.0,0.210256]
[1733150098688,0.2,96500.0,96499.0,0.31910121]
[1733150098931,0.2,96500.0,96499.0,0.210256]
[1733150099130,0.2,96500.0,96499.0,0.216256]
[1733150099361,0.2,96500.0,96499.0,0.009]
[1733150099571,0.2,96500.0,96499.0,0.003]
[1733150100267,0.15234375,96500.0,96499.0,0.12388909]
[1733150100482,0.03689575,96500.0,96499.0,0.58877905]
[1733150100698,0.03689575,96500.0,96499.0,0.58894509]
[1733150101405,0.03689575,96500.0,96499.0,0.58694509]
[1733150101621,0.03689575,96500.0,96499.0,0.63244509]
[1733150101845,0.000143,96541.0,96540.0,0.207168]
[1733150102065,0.000143,96541.0,96540.0,0.21986917]
[1733150102285,0.000143,96541.0,96540.0,0.32271438]
[1733150102751,0.000143,96541.0,96540.0,0.34571438]
[1733150102963,0.0008642,96542.0,96540.0,0.34571438]
[1733150103206,0.00017655,96541.0,96540.0,0.207168]
[1733150103463,0.00017655,96541.0,96540.0,0.31001321]
[1733150104127,0.00017655,96541.0,96540.0,0.33301321]
[1733150104805,0.00017655,96541.0,96540.0,0.32801321]
[1733150105049,0.00017655,96541.0,96540.0,0.33701321]
[1733150105256,0.01716558,96567.0,96562.0,0.023]
[1733150105500,0.01716558,96567.0,96566.0,0.230112]
[1733150105747,0.01716558,96567.0,96566.0,0.33295721]
[1733150106462,0.01716558,96567.0,96566.0,0.207112]
[1733150108287,0.01716558,96567.0,96566.0,0.216112]
[1733150108497,0.01716558,96567.0,96566.0,0.221112]
[1733150109039,0.01716558,96567.0,96566.0,0.32395721]
[1733150109773,0.01716558,96567.0,96566.0,0.221112]
[1733150110518,0.01716558,96567.0,96566.0,0.014]
[1733150112371,0.01716558,96567.0,96566.0,0.009]
[1733150112662,0.207112,96566.0,96540.0,0.1856929]
[1733150112872,0.207128,96559.0,96540.0,0.00017655]
[1733150113138,0.207112,96566.0,96545.0,0.207156]
[1733150113139,0.2,96566.0,96545.0,0.207156]
[1733150113372,0.01716558,96567.0,96549.0,0.18551635]
[1733150113609,0.01716558,96567.0,96565.0,0.207113]
[1733150113814,0.01716558,96567.0,96541.0,0.00752765]
[1733150113815,0.01716558,96567.0,96560.0,0.207124]
[1733150114027,0.01716558,96567.0,96553.0,0.207138]
[1733150114259,0.01716558,96567.0,96566.0,0.207112]
[1733150114481,0.01716558,96567.0,96558.0,0.207128]
[1733150114695,0.01716558,96567.0,96543.0,0.023]
[1733150114696,0.01716558,96567.0,96548.0,0.207149]
[1733150114934,0.207125,96560.0,96540.0,0.00017655]
[1733150115203,0.01716558,96567.0,96547.0,0.207152]
[1733150115412,0.207121,96562.0,96549.0,0.207147]
[1733150115643,0.01803018,96567.0,96545.0,0.207155]
[1733150115858,0.01803018,96567.0,96540.0,0.20734355]
[1733150115859,0.207147,96550.0,96540.0,0.20734355]
[1733150116083,0.30284521,96550.0,96540.0,0.00017655]
[1733150116318,0.207161,96544.0,96540.0,0.00417655]
[1733150116865,0.414322,96544.0,96540.0,0.00417655]
[1733150117090,0.203261,96544.0,96540.0,0.00417655]
[1733150117292,0.207153,96547.0,96540.0,0.00417655]
[1733150117509,0.207152,96548.0,96540.0,0.00017655]
[1733150117979,0.207144,96551.0,96540.0,0.0209121]
[1733150118192,0.207102,96571.0,96540.0,0.00017655]
[1733150118193,0.207153,96547.0,96540.0,0.00017655]
[1733150118405,0.208161,96544.0,96540.0,0.00017655]
[1733150118638,0.415322,96544.0,96540.0,0.00017655]
[1733150119160,0.207163,96542.0,96540.0,0.00017655]
[1733150119385,0.10284521,96541.0,96540.0,0.00017655]
[1733150119594,0.207163,96542.0,96540.0,0.00017655]
[1733150121883,0.207111,96567.0,96547.0,0.207152]
[1733150122127,0.2,96571.0,96542.0,0.207163]
[1733150122356,0.2,96571.0,96543.0,0.03374505]
[1733150122357,0.10284521,96566.0,96543.0,0.03374505]
[1733150122614,0.20711,96567.0,96548.0,0.20715]
[1733150122879,0.207105,96569.0,96550.0,0.207146]
[1733150123114,0.204,96570.0,96546.0,0.207155]
[1733150123325,0.204,96570.0,96544.0,0.30284521]
[1733150123326,0.204,96570.0,96551.0,0.207144]
[1733150123542,0.204,96570.0,96551.0,0.10284521]
[1733150123780,0.204,96570.0,96549.0,0.2]
[1733150123781,0.204,96570.0,96557.0,0.207131]
[1733150124487,0.204,96570.0,96561.0,0.207121]
[1733150124721,0.204,96570.0,96561.0,0.30996621]
[1733150124964,0.204,96570.0,96557.0,0.207131]
[1733150125192,0.17564148,96570.0,96558.0,0.10284521]
[1733150125452,0.207105,96569.0,96552.0,0.2]
[1733150125667,0.17564148,96570.0,96553.0,0.10284521]
[1733150125903,0.17564148,96570.0,96549.0,0.2]
[1733150125904,0.207116,96565.0,96549.0,0.2]
[1733150126122,0.207115,96565.0,96549.0,0.10284521]
[1733150126336,0.17564148,96570.0,96535.0,0.2]
[1733150126337,0.207138,96554.0,96535.0,0.2]
[1733150126547,0.17564148,96570.0,96532.0,0.2]
[1733150126548,0.207133,96557.0,96532.0,0.2]
[1733150126771,0.10284521,96565.0,96532.0,0.2]
[1733150126985,0.0456,96567.0,96540.0,0.00190495]
[1733150127205,0.0456,96567.0,96544.0,0.2]
[1733150127421,0.0456,96567.0,96545.0,0.10284521]
[1733150127661,0.207112,96566.0,96545.0,0.06196242]
[1733150127908,0.38361068,96570.0,96548.0,0.20715]
[1733150127909,0.17650568,96570.0,96548.0,0.20715]
[1733150128125,0.17650568,96570.0,96556.0,0.2]
[1733150128356,0.17650568,96570.0,96557.0,0.12284521]
[1733150128564,0.17650568,96570.0,96548.0,0.207149]
[1733150128809,0.17650568,96570.0,96545.0,0.2]
[1733150129023,0.17650568,96570.0,96553.0,0.407138]
[1733150129273,0.0008642,96570.0,96554.0,0.10284521]
[1733150129913,0.0008642,96570.0,96541.0,0.207165]
[1733150130127,0.207122,96562.0,96540.0,0.00190495]
[1733150130379,0.20714,96553.0,96540.0,0.00190495]
[1733150130693,0.0824,96564.0,96540.0,0.00190495]
[1733150130802,0.207133,96557.0,96540.0,0.00090495]
[1733150131036,0.289517,96564.0,96540.0,0.00090495]
[1733150131037,0.15214521,96556.0,96540.0,0.00090495]
[1733150131261,0.207163,96543.0,96540.0,0.00090495]
[1733150131482,0.207163,96543.0,96540.0,0.00290495]
[1733150131692,0.00590564,96542.0,96540.0,0.00290495]
[1733150131966,0.00590564,96542.0,96540.0,0.00090495]
[1733150132455,0.0018642,96570.0,96540.0,0.00090495]
[1733150132693,0.0059622,96541.0,96540.0,0.00090495]
[1733150132912,0.10879116,96568.0,96540.0,0.00090495]
[1733150133133,0.10879116,96568.0,96527.0,0.2]
[1733150133134,0.001,96542.0,96527.0,0.1627135]
[1733150133354,0.001,96542.0,96531.0,0.2]
[1733150133564,0.001,96542.0,96516.0,0.09991864]
[1733150133565,0.001,96542.0,96540.0,0.19849752]
[1733150133783,0.1895,96559.0,96541.0,0.10284521]
[1733150134251,0.00594873,96558.0,96541.0,0.09607895]
[1733150134519,0.1895,96559.0,96541.0,0.09607895]
[1733150134765,0.1895,96559.0,96540.0,0.18204631]
[1733150134766,0.00594873,96557.0,96532.0,0.18204631]
[1733150135003,0.1895,96559.0,96533.0,0.10284521]
[1733150135004,0.207129,96558.0,96533.0,0.10284521]
[1733150135242,0.207129,96558.0,96516.0,0.0795]
[1733150135243,0.00594765,96556.0,96541.0,0.001]
[1733150135456,0.10284521,96557.0,96541.0,0.001]
[1733150135457,0.207145,96551.0,96541.0,0.001]
[1733150135672,0.21308265,96555.0,96541.0,0.001]
[1733150135911,0.21308265,96555.0,96530.0,0.207188]
[1733150135912,0.00106282,96540.0,96533.0,0.207183]
[1733150136128,0.00106282,96540.0,96533.0,0.31002821]
[1733150136379,0.00106282,96540.0,96533.0,0.10284521]
[1733150136631,0.00106282,96540.0,96526.0,0.18204631]
[1733150136858,0.00106282,96540.0,96527.0,0.10284521]
[1733150137525,0.00106282,96540.0,96527.0,0.31003921]
[1733150137754,0.00106282,96540.0,96528.0,0.207193]
[1733150137976,0.00106282,96540.0,96527.0,0.10284521]
[1733150137977,0.00106282,96540.0,96526.0,0.002]
[1733150138226,0.00106282,96540.0,96522.0,0.18204631]
[1733150138656,0.00106282,96540.0,96513.0,0.18204631]
[1733150138660,0.00106282,96540.0,96490.0,0.00193264]
[1733150138661,0.01795369,96538.0,96527.0,0.002]
[1733150138874,0.01795369,96533.0,96491.0,0.18204631]
[1733150139089,0.02073461,96534.0,96490.0,0.00193264]
[1733150139090,0.207253,96501.0,96490.0,0.00193264]
[1733150139527,0.207248,96503.0,96490.0,0.00193264]
[1733150139778,0.00588082,96500.0,96490.0,0.00193264]
[1733150140021,0.1895,96509.0,96490.0,0.00193264]
[1733150140256,0.1895,96510.0,96500.0,0.10284521]
[1733150140511,0.1895,96510.0,96499.0,0.00190521]
[1733150140945,0.002,96500.0,96499.0,0.00190521]
[1733150141155,0.207252,96501.0,96499.0,0.0008424]
[1733150141371,0.002,96503.0,96499.0,0.0008424]
[1733150141585,0.1895,96510.0,96500.0,0.002]
[1733150141824,0.1895,96510.0,96499.0,0.0008424]
[1733150142244,0.1895,96510.0,96499.0,0.0068424]
[1733150142916,0.22894521,96509.0,96499.0,0.0068424]
[1733150143171,0.207252,96501.0,96499.0,0.0068424]
[1733150143388,0.1207989,96500.0,96499.0,0.0068424]
[1733150143637,0.1207989,96500.0,96499.0,0.0008424]
[1733150143852,0.18018831,96500.0,96499.0,0.0008424]
[1733150144962,0.18018831,96500.0,96490.0,0.00193264]
[1733150144963,0.22522669,96491.0,96490.0,0.00193264]
[1733150145178,0.3280719,96491.0,96490.0,0.00193264]
[1733150145391,0.55571957,96491.0,96490.0,0.00193264]
[1733150145620,0.56157889,96491.0,96490.0,0.00193264]
[1733150145825,0.65846368,96491.0,96490.0,0.00193264]
[1733150146040,0.65846368,96491.0,96441.0,0.20738]
[1733150146041,0.207327,96466.0,96463.0,0.041499]
[1733150146332,0.0492,96464.0,96443.0,0.0017236]
[1733150146600,0.207357,96452.0,96443.0,0.0017236]
[1733150146815,0.31020221,96452.0,96443.0,0.0017236]
[1733150147033,0.33401522,96452.0,96443.0,0.0017236]
[1733150147455,0.33401522,96452.0,96451.0,0.00231305]
[1733150147902,0.33401522,96452.0,96451.0,0.00631305]
[1733150148351,0.31606153,96452.0,96451.0,0.00631305]